Cogmind - Beta 17.1 @@@ ROGUE MODE // 2026.09.03 @ 05:33:28 Player: MrFartsburg Result: Destroyed by Y-54 Guardian with Gatling Laser Performance ------------- Evolutions (4) 2000 Regions Visited (8) 1600 Robots Destroyed (38) 190 Value Destroyed (845) 845 Prototype IDs (1) 20 Alien Tech Used (0) 0 Bonus (120) 120 TOTAL SCORE: 4775 Bonus ------- Follower Combat Kills 147 Friendly Fire -27 Cogmind --------- Core Integrity 0/850 Matter 273/300 Energy 450/450 System Corruption 2% Temperature Cool (12) Movement Core (250) Ox4 Location -6/Lower Caves Parts ------- > --- POWER (2) -------- (None) > --- PROPULSION (3) --- (None) > --- UTILITY (7) ------ Energy Well (fused) Improved Signal Interpreter Core Analyzer Makeshift Power Shielding Makeshift Light Armor Plating Component Analysis Suite > --- WEAPON (3) ------- Makeshift Shrapnel Gun > --- INVENTORY (5) ---- Fission Core Heavy Assault Rifle Remote Datajack GAL Module Peak State ------------ > --- POWER ------------ Backup Power I Reinforced Deuterium Engine > --- PROPULSION ------- Improved Medium Treads Gravmag System > --- UTILITY ---------- Makeshift Heat Sink Small Storage Unit Energy Well Improved Terrain Scanner Makeshift Power Shielding Hardened Light Armor Plating Component Analysis Suite > --- WEAPON ----------- Makeshift Laser Proton Cannon Coil Gun > --- INVENTORY -------- Makeshift Power Source Fusion Compressor Heavy Assault Rifle Mini Grenade Launcher Remote Datajack GAL Module [Rating: 53] Favorites ----------- Power Improved Ion Engine Engine Improved Ion Engine Power Core Fusion Compressor Propulsion Aluminum Leg Treads Improved Medium Treads Leg Aluminum Leg Hover Unit Airjet Utility Small Storage Unit Device Component Analysis Suite Storage Small Storage Unit Processor Improved Signal Interpreter Hackware Makeshift Hacking Suite Protection Makeshift Power Shielding Weapon Assault Rifle Energy Gun Small Laser Energy Cannon Proton Cannon Ballistic Gun Assault Rifle Ballistic Cannon Slug Cannon Launcher Mini Grenade Launcher Build | -11 -10 -9 -9 -7 -6 -6 -6 -6 ------- Run | Yrd Mat Mat Min Zio Pro Fac Low Low Slots Evolved 8 | . . 2 . . . 6 . . Power 1 | . . 1 . . . . . . Propulsion 1 | . . . . . . 1 . . Utility 5 | . . 1 . . . 4 . . Weapon 1 | . . . . . . 1 . . Parts Attached 46 | 6 4 5 1 5 4 12 5 4 Power 7 | 1 1 1 . . 1 1 2 . Engine 6 | 1 1 1 . . 1 1 1 . Core 1 | . . . . . . . 1 . Reactor . | . . . . . . . . . Propulsion 10 | 2 . 2 . 2 1 2 1 . Treads 1 | . . . . . . 1 . . Leg 6 | 2 . 2 . 2 . . . . Wheel . | . . . . . . . . . Hover 3 | . . . . . 1 1 1 . Flight . | . . . . . . . . . Utility 15 | 1 1 1 . 2 . 6 2 2 Device 6 | . . 1 . 1 . 3 1 . Storage 2 | 1 . . . . . 1 . . Processor 2 | . . . . . . . 1 1 Hackware 1 | . . . . . . 1 . . Protection 4 | . 1 . . 1 . 1 . 1 Artifact . | . . . . . . . . . Weapon 14 | 2 2 1 1 1 2 3 . 2 Energy Gun 6 | 1 1 1 1 . 1 1 . . Energy Cannon 1 | . . . . . . 1 . . Ballistic Gun 3 | 1 . . . . . 1 . 1 Ballistic Cannon 3 | . . . . 1 1 . . 1 Launcher 1 | . 1 . . . . . . . Special Weapon . | . . . . . . . . . Impact Weapon . | . . . . . . . . . Slashing Weapon . | . . . . . . . . . Piercing Weapon . | . . . . . . . . . Special Melee Weapon . | . . . . . . . . . Unidentified Prototypes 1 | . 1 . . . . . . . Parts Lost 28 | . . . 2 . 5 5 16 . Power 7 | . . . . . 2 . 5 . Propulsion 6 | . . . . . 2 1 3 . Utility 7 | . . . . . . 2 5 . Weapon 8 | . . . 2 . 1 2 3 . Highest Loss Streak 12 | . . . 2 . 4 2 12 . To Critical Strikes . | . . . . . . . . . Average Backups 3 | 1 3 3 3 6 6 3 4 3 Power . | . 1 . . . . . 1 1 Propulsion . | . . . . . . . . . Utility . | . . . . 2 3 . . . Weapon 2 | . 1 3 3 4 3 2 1 1 Tool/Special . | . . . . . . . . . Unused Backups 8 | . 2 . . 3 . . . 3 Power 2 | . 1 . . . . . . 1 Propulsion . | . . . . . . . . . Utility 2 | . 1 . . 1 . . . . Weapon 3 | . . . . 2 . . . 1 Tool/Special 1 | . . . . . . . . 1 Average Slot Usage (%) 80 | . 98 97 99 100 74 87 68 38 Engine 12 | . 14 20 22 22 6 12 8 . Treads 1 | . . . . . . 5 3 . Leg 9 | . 28 21 22 22 8 . . . Hover 2 | . . . . . 4 4 5 . Device 11 | . . 10 11 11 11 19 11 6 Storage 9 | . 14 11 11 11 11 6 10 6 Protection 11 | . 12 11 11 11 11 12 10 10 Energy Gun 9 | . 13 18 16 11 10 9 3 . Ballistic Gun 1 | . 10 . . . . 2 3 3 Ballistic Cannon 4 | . . . . 7 11 3 . 3 Launcher 1 | . 3 3 5 3 . . . . Peak Build Rating 53 | 6 11 17 17 31 32 53 51 33 Average Rating 22 | 5 7 16 16 22 26 47 39 24 On Entrance 19 | . 6 11 17 16 31 27 53 17 Avg Prop Armor Cover (%) 3 | . . . . . . 3 3 . Naked Turns . | . . . . . . . . . Heaviest Build 50 | 11 17 27 27 33 33 50 49 20 Greatest Support 40 | 20 20 26 26 40 40 30 30 3 Greatest Overweight (x) 15 | 2 . 1 1 1 6 15 5 6 Average Overweight (x) . | . . . . . 1 1 1 3 Largest Inventory Capacity 8 | 8 8 8 8 8 8 8 8 5 Average Capacity 7 | 7 8 8 8 8 8 8 6 5 Most Carried 8 | 2 5 5 5 8 8 7 6 4 Average Carried 4 | 1 3 3 3 7 7 4 5 4 Final Capacity 8 | 8 8 8 8 8 8 8 5 5 Final Carried 8 | 2 4 4 5 8 8 6 4 4 Class Distribution -------------------- 56% | Mutant 25% | Derelict-Mutant 12% | Derelict-Tank 4% | Tank Dominant Class ---------------- Mutant | -10/Materials Mutant | -9/Materials Mutant | -9/Mines Mutant | -7/Zion Derelict-Mutant | -6/Proximity Caves Derelict-Tank | -6/Factory Tank | -6/Lower Caves Derelict-Mutant | -6/Lower Caves Resources | -11 -10 -9 -9 -7 -6 -6 -6 -6 ----------- Run | Yrd Mat Mat Min Zio Pro Fac Low Low Matter Collected 1225 | 203 26 190 79 20 205 190 255 57 Remotely . | . . . . . . . . . Salvage Created 881 | . 180 178 36 . 48 407 32 . Parts 62 | . 19 11 10 . 1 20 1 . Haulers Intercepted . | . . . . . . . . . Recyclers Shooed . | . . . . . . . . . Parts Field Recycled . | . . . . . . . . . Retrieved Matter . | . . . . . . . . . Parts Self-Destructed 14 | . . . . . 9 . . 5 Prevented . | . . . . . . . . . Parts Restored . | . . . . . . . . . Kills | -11 -10 -9 -9 -7 -6 -6 -6 -6 ------- Run | Yrd Mat Mat Min Zio Pro Fac Low Low Combat Hostiles Destroyed 30 | . 8 6 4 . 1 7 4 . Guns 15 | . 7 4 . . . 4 . . Cannons 3 | . . . . . 1 2 . . AOE 12 | . 1 2 4 . . 1 4 . Classes Destroyed 10 | . 4 2 2 . . 2 . . Worker 2 | . 1 . . . . 1 . . Builder 3 | . . . 1 . . 2 . . Tunneler 1 | . . . 1 . . . . . Recycler 1 | . . 1 . . . . . . Watcher 1 | . 1 . . . . . . . Swarmer 19 | . 6 5 4 . . . 4 . Grunt 8 | . 2 . . . 1 5 . . Brawler 1 | . . . . . . 1 . . Sentry 1 | . . 1 . . . . . . Programmer 1 | . . . . . . 1 . . Best Kill Streak 6 | . 6 3 6 . 1 6 4 . Combat Bots Only 6 | . 6 3 4 . 1 3 4 . Max Kills in Single Turn 4 | . 2 2 4 . 1 2 2 . Gunslinging 1 | . 1 . . . . . . . Exploded 3 | . 1 2 3 . . 1 2 . Melee . | . . . . . . . . . Uniques/NPCs Destroyed . | . . . . . . . . . Combat | -11 -10 -9 -9 -7 -6 -6 -6 -6 -------- Run | Yrd Mat Mat Min Zio Pro Fac Low Low Hostile Shots Fired 441 | . 54 33 10 . 62 79 146 57 Missed 149 | . 20 13 3 . 23 27 41 22 Hits 292 | . 34 20 7 . 39 52 105 35 Projectile 292 | . 34 20 7 . 39 52 105 35 Critical Strikes 5 | . . . . . . 4 1 . Part Disruptions 1 | . . . . . . 1 . . Damage Taken 4224 | . 288 241 90 . 756 938 1646 265 Core 1138 | . 88 43 . . 146 159 630 72 Absorbed by Shields 10 | . . . . . . 10 . . Redirected to Shielding 86 | . 11 13 . . 10 8 44 . Regen/Repaired (Parts) 62 | . . . . . . 62 . . Core Remaining (%) 72 | 100 64 . . . 52 . . . Volleys Fired 70 | . 8 12 4 . 15 28 3 . Largest 3 | . 2 2 2 . 2 3 3 . Hottest 180 | . 86 101 86 . 123 180 135 . Shots Fired 164 | . 16 22 6 . 30 81 9 . Gun 104 | . 14 22 2 . 10 53 3 . Cannon 44 | . . . . . 15 26 3 . Launcher 16 | . 2 . 4 . 5 2 3 . Special . | . . . . . . . . . Kinetic 58 | . 6 . . . 15 34 3 . Thermal 64 | . 8 10 2 . 10 34 . . Explosive 16 | . 2 . 4 . 5 2 3 . Electromagnetic 26 | . . 12 . . . 11 3 . Robot Hit Streak 6 | . 4 5 2 . 4 6 . . Robot Miss Streak 5 | . 2 5 1 . 4 3 . . Penetration Max 1 | . . . . . . 1 . . Secondary Targets 3 | . 3 . . . . . . . Max Gunslinging Chain 1 | . 1 . . . . . . . Shots Hit Robots 90 | . 10 15 3 . 14 48 . . Core Hits 66 | . 13 11 8 . 7 21 6 . Critical Kills 1 | . . . . . 1 . . . Critical Parts Destroyed 2 | . . . . . 1 1 . . Critical Strikes 8 | . 1 2 . . 3 2 . . Burn 5 | . 1 2 . . 1 1 . . Destroy 3 | . . . . . 2 1 . . Melee Attacks . | . . . . . . . . . Impact . | . . . . . . . . . Slashing . | . . . . . . . . . Piercing . | . . . . . . . . . Sneak Attacks . | . . . . . . . . . Combat Hostiles . | . . . . . . . . . Follow-up Attacks . | . . . . . . . . . Damage Inflicted 2886 | . 289 327 325 . 358 1267 320 . Guns 1271 | . 118 221 18 . 147 767 . . Cannons 374 | . . . . . 40 334 . . Explosions 1240 | . 171 106 307 . 171 166 319 . Melee . | . . . . . . . . . Ramming 1 | . . . . . . . 1 . Kinetic 648 | . 58 . . . 40 550 . . Thermal 932 | . 60 206 65 . 147 454 . . Explosive 1087 | . 171 . 260 . 171 166 319 . Electromagnetic 218 | . . 121 . . . 97 . . Impact . | . . . . . . . . . Slashing . | . . . . . . . . . Piercing . | . . . . . . . . . Highest Corruption 2 | . . . . . . 1 2 2 Average Corruption 1 | . . . . . . 1 1 2 Corruption Purged . | . . . . . . . . . Corruption Blocked . | . . . . . . . . . Effects 12 | . . . . . . 2 4 6 Message Errors 2 | . . . . . . . 2 . Matter Fused 3 | . . . . . . 2 . 1 Energy Discharges 1 | . . . . . . . 1 . Parts Rejected 1 | . . . . . . . . 1 Parts Fused 1 | . . . . . . . . 1 Data Loss (minor) 2 | . . . . . . . . 2 Data Loss (major) 2 | . . . . . . . 1 1 Overload Shots . | . . . . . . . . . Overflow Damage 83 | . . . 33 . 21 24 5 . Projectiles 24 | . . . . . . 24 . . Explosions 59 | . . . 33 . 21 . 5 . Melee . | . . . . . . . . . Knockbacks 4 | . . . . . . 4 . . Impact . | . . . . . . . . . Kinetic 3 | . . . . . . 3 . . Secondary 1 | . . . . . . 1 . . Self-Inflicted Damage 143 | . . 53 38 . 43 9 . . Shots 5 | . . 2 1 . 1 1 . . Rammed 1 | . . . . . . . 1 . Targets Rammed 1 | . . . . . . . 1 . Kicked . | . . . . . . . . . Crushed . | . . . . . . . . . Highest Temperature 358 | . 54 187 108 . 141 358 156 . Average Temperature 91 | . 31 76 60 . 59 130 68 . Received Heat Transfer 606 | . 48 27 . . 9 372 72 78 Effects 2 | . . . . . . 2 . . Shutdowns 1 | . . . . . . 1 . . Energy Bleed 1 | . . . . . . 1 . . Siege Activations . | . . . . . . . . . Martial Activations . | . . . . . . . . . Shielding Activations . | . . . . . . . . . Robots Disrupted . | . . . . . . . . . Combat Hostiles . | . . . . . . . . . Robots Corrupted . | . . . . . . . . . Combat Hostiles . | . . . . . . . . . Parts Fried 2 | . . 2 . . . . . . Impact Corruptions . | . . . . . . . . . Robots Melted . | . . . . . . . . . Combat Hostiles . | . . . . . . . . . Parts Melted 5 | . . 3 . . 1 1 . . Heat Transferred 2039 | . 211 520 87 . 333 888 . . Parts Sabotaged . | . . . . . . . . . Parts Stolen . | . . . . . . . . . Parts Stripped . | . . . . . . . . . Power Chain Reactions 2 | . . 2 . . . . . . Alert | -11 -10 -9 -9 -7 -6 -6 -6 -6 ------- Run | Yrd Mat Mat Min Zio Pro Fac Low Low Maximum Alert Level . | . . . . . . . . . Low Security (%) 100 | 100 100 100 100 . . 100 . . Level 1 . | . . . . . . . . . Level 2 . | . . . . . . . . . Level 3 . | . . . . . . . . . Level 4 . | . . . . . . . . . Level 5 . | . . . . . . . . . High Security . | . . . . . . . . . Max Security . | . . . . . . . . . Peak Influence 189 | . 189 93 133 . . 88 . . Initial 66 | . . 66 13 . . . . . Average 18 | . 68 53 38 . . 17 . . Influence Increases 982 | . 234 167 143 . 106 227 105 . Destroy 0b10 Robot/C 660 | . 160 120 80 . 80 140 80 . Destroy 0b10 Robot/NC 40 | . 10 5 10 . . 15 . . Destroy Leader 132 | . 32 30 10 . 20 30 10 . Allied During Kill 6 | . . . . . 6 . . . Successful Hack 8 | . 5 . . . . 3 . . Disable Machine 30 | . 15 . 15 . . . . . Destroy Structure 61 | . 12 12 28 . . 9 . . Partial Spotted 15 | . . . . . . 15 . . Lose Combat Pursuer 30 | . . . . . . 15 15 . Influence Decreases 982 | . 75 291 149 29 106 227 90 15 Entered New Map 148 | . . 93 22 29 . . . 4 Time Decay 754 | . 75 198 117 . 96 177 80 11 Lost Part 80 | . . . 10 . 10 50 10 . Squads Dispatched 3 | . 1 . . . . 2 . . Investigation 2 | . 1 . . . . 1 . . Extermination 1 | . . . . . . 1 . . Reinforcement . | . . . . . . . . . Assault . | . . . . . . . . . Garrison . | . . . . . . . . . Intercept . | . . . . . . . . . Searches Triggered . | . . . . . . . . . Construction Impeded . | . . . . . . . . . Haulers Reinforced . | . . . . . . . . . Active Scanning Responses . | . . . . . . . . . Cargo Convoy Interrupts . | . . . . . . . . . Stealth | -11 -10 -9 -9 -7 -6 -6 -6 -6 --------- Run | Yrd Mat Mat Min Zio Pro Fac Low Low Distress Signals 5 | . 2 2 . . . 1 . . Communications Jammed . | . . . . . . . . . Distress Signals . | . . . . . . . . . Times Spotted 52 | . 11 11 6 . 4 10 9 1 Peak Tracking Total 8 | . 8 5 4 . 2 3 6 1 Tactical Retreats 2 | . . . . . . 1 1 . Traps | -11 -10 -9 -9 -7 -6 -6 -6 -6 ------- Run | Yrd Mat Mat Min Zio Pro Fac Low Low Traps Triggered 3 | . . 2 . . . 1 . . Indirectly . | . . . . . . . . . Trap Hack Attempts . | . . . . . . . . . Triggered . | . . . . . . . . . Disarmed . | . . . . . . . . . Reprogrammed . | . . . . . . . . . Reused . | . . . . . . . . . Traps Extracted . | . . . . . . . . . Installed . | . . . . . . . . . Triggered . | . . . . . . . . . Machines | -11 -10 -9 -9 -7 -6 -6 -6 -6 ---------- Run | Yrd Mat Mat Min Zio Pro Fac Low Low Machines Disabled 2 | . 1 . 1 . . . . . Max in Single Turn 1 | . 1 . 1 . . . . . Machines Repaired . | . . . . . . . . . Machines Dismantled . | . . . . . . . . . Machines Sabotaged . | . . . . . . . . . Overloaded Fab Kills . | . . . . . . . . . Hacking | -11 -10 -9 -9 -7 -6 -6 -6 -6 --------- Run | Yrd Mat Mat Min Zio Pro Fac Low Low Machines Accessed 6 | . 2 1 . . . 1 . 2 Terminals 2 | . 1 1 . . . . . . Fabricators . | . . . . . . . . . Repair Stations 1 | . . . . . . 1 . . Recycling Units 1 | . 1 . . . . . . . Scanalyzers . | . . . . . . . . . Garrison Access . | . . . . . . . . . Total Hacks 22 | . 6 4 . . . 4 . 8 Successful 18 | . 5 2 . . . 3 . 8 Failed 4 | . 1 2 . . . 1 . . Catastrophic 1 | . . 1 . . . . . . Database Lockouts . | . . . . . . . . . Manual . | . . . . . . . . . Terminals 9 | . 5 4 . . . . . . Fabricators . | . . . . . . . . . Repair Stations 4 | . . . . . . 4 . . Recycling Units 1 | . 1 . . . . . . . Scanalyzers . | . . . . . . . . . Garrison Access . | . . . . . . . . . Terminal Hacks 14 | . 4 2 . . . . . 8 Record 12 | . 3 2 . . . . . 7 Open Door 1 | . . . . . . . . 1 Zone Layout 1 | . 1 . . . . . . . Fabricator Hacks . | . . . . . . . . . Repair Station Hacks 3 | . . . . . . 3 . . Scan Component 1 | . . . . . . 1 . . Repair 1 | . . . . . . 1 . . Refit 1 | . . . . . . 1 . . Recycling Unit Hacks 1 | . 1 . . . . . . . Report Inventory 1 | . 1 . . . . . . . Scanalyzer . | . . . . . . . . . Garrison Access Hacks . | . . . . . . . . . Unauthorized Hacks . | . . . . . . . . . Terminals . | . . . . . . . . . Fabricators . | . . . . . . . . . Repair Stations . | . . . . . . . . . Recycling Units . | . . . . . . . . . Scanalyzers . | . . . . . . . . . Garrison Access . | . . . . . . . . . Data Cores Recovered . | . . . . . . . . . Used . | . . . . . . . . . Hacking Detections 3 | . 1 1 . . . 1 . . Full Trace Events 3 | . 1 1 . . . 1 . . Feedback Events . | . . . . . . . . . Feedback Blocked . | . . . . . . . . . Robot Schematics Acquired . | . . . . . . . . . Robots Built . | . . . . . . . . . Authchips . | . . . . . . . . . Time . | . . . . . . . . . Total Robot Build Rating . | . . . . . . . . . Part Schematics Acquired . | . . . . . . . . . Parts Built . | . . . . . . . . . Authchips . | . . . . . . . . . Time . | . . . . . . . . . Total Part Build Rating . | . . . . . . . . . Part Studies Acquired . | . . . . . . . . . Parts Repaired 1 | . . . . . . 1 . . Time 50 | . . . . . . 50 . . Parts Recycled . | . . . . . . . . . Recycled Matter . | . . . . . . . . . Retrieved Matter . | . . . . . . . . . Retrieved Components . | . . . . . . . . . Parts Scanalyzed . | . . . . . . . . . Part Schematics Acquired . | . . . . . . . . . Parts Damaged . | . . . . . . . . . Bothacking | -11 -10 -9 -9 -7 -6 -6 -6 -6 ------------ Run | Yrd Mat Mat Min Zio Pro Fac Low Low Used RIF Installer . | . . . . . . . . . Robots Hacked . | . . . . . . . . . Non-combat . | . . . . . . . . . Combat . | . . . . . . . . . Robot Hacks Applied . | . . . . . . . . . Relay Couplers Released . | . . . . . . . . . Fabnet Peak Effective % . | . . . . . . . . . Robots Rewired . | . . . . . . . . . Allies Hacked . | . . . . . . . . . Hacks Repelled . | . . . . . . . . . Allies | -11 -10 -9 -9 -7 -6 -6 -6 -6 -------- Run | Yrd Mat Mat Min Zio Pro Fac Low Low Total Allies 2 | . . . . 2 . . . . Largest Group 2 | . . . . 2 2 1 . . Highest-Rated Group 62 | . . . . 62 62 31 . . Highest-Rated Ally 31 | . . . . 31 31 31 . . Total Orders . | . . . . . . . . . Ally Attacks 38 | . . . . . 30 8 . . Total Damage 497 | . . . . . 415 82 . . Kills 3 | . . . . . 3 . . . Allies Corrupted . | . . . . . . . . . Allies Melted . | . . . . . . . . . Intel | -11 -10 -9 -9 -7 -6 -6 -6 -6 ------- Run | Yrd Mat Mat Min Zio Pro Fac Low Low Active Infowar (turns) 1141 | . . . . . . 784 357 . Terrain 1141 | . . . . . . 784 357 . Robot Analysis Total . | . . . . . . . . . Derelict Logs Recovered 3 | . . . 1 . . . 2 . Drone Launches . | . . . . . . . . . Drone Recoveries . | . . . . . . . . . Exploration | -11 -10 -9 -9 -7 -6 -6 -6 -6 ------------- Run | Yrd Mat Mat Min Zio Pro Fac Low Low Turns Passed 6625 | 1859 265 401 458 554 1076 901 539 572 Spaces Moved 3555 | 1139 191 185 294 345 565 305 284 247 Core 345 | 10 . . . . 64 3 21 247 Treads 414 | . . . . . . 284 130 . Legs 2411 | 1129 191 185 294 345 267 . . . Wheels . | . . . . . . . . . Hover 385 | . . . . . 234 18 133 . Flight . | . . . . . . . . . Fastest Speed 50 | 50 120 120 120 120 140 160 60 150 Average Speed 161 | 120 120 188 148 153 180 241 178 227 Slowest Speed 800 | 190 120 190 190 210 350 800 300 350 Overloaded Moves . | . . . . . . . . . Propulsion Burnouts . | . . . . . . . . . Robots Hopped . | . . . . . . . . . Potential Cave-ins . | . . . . . . . . . Cave-ins Triggered . | . . . . . . . . . Exploration Rate (%) 42 | 44 43 23 77 31 66 8 48 40 Regions Visited 8 Branch Regions 5 Pre-discovered Areas 2 | . . . . 1 . . . 1 Known Exits Taken 1 | . . . . . . . 1 . Unknown Exits Taken 7 | 1 1 1 1 1 1 1 . . Scrap Searched 7 | . . . . 2 3 . 1 1 Spaces Dug . | . . . . . . . . . Terrain Destroyed 122 | . 10 10 29 . 45 7 21 . Melee . | . . . . . . . . . Projectile 11 | . . . . . 9 2 . . AOE 111 | . 10 10 29 . 36 5 21 . Terrain Rammed . | . . . . . . . . . Walls Destroyed . | . . . . . . . . . Machines Disabled . | . . . . . . . . . Actions | -11 -10 -9 -9 -7 -6 -6 -6 -6 --------- Run | Yrd Mat Mat Min Zio Pro Fac Low Low Total 4282 | 1625 211 213 308 370 590 405 306 254 Wait 557 | 479 . 1 6 7 1 51 9 3 Move 3547 | 1138 190 184 293 344 564 304 283 247 Hop . | . . . . . . . . . Pick Up 26 | 2 4 3 3 6 2 5 1 . Fast Attach 37 | 6 4 7 . 4 3 5 4 4 Attach 15 | . . 3 2 . 1 7 2 . Detach 1 | . . . . 1 . . . . Swap 10 | . . 1 . 1 2 3 3 . Drop 16 | . 5 2 . 7 2 . . . Fire 70 | . 8 12 4 . 15 28 3 . Melee . | . . . . . . . . . Ram 1 | . . . . . . . 1 . Kick . | . . . . . . . . . Crush . | . . . . . . . . . Escape Stasis 2 | . . . . . . 2 . . Rewire . | . . . . . . . . . Trap . | . . . . . . . . . Miscellaneous . | . . . . . . . . . Route ------- -11/Scrapyard -10/Materials -9/Materials -9/Mines -7/Zion -6/Proximity Caves -6/Factory -6/Lower Caves -6/Lower Caves (discovered 1 exit: [*Dat]) History --------- Turn | Location | Event 2 | -11/Scrapyard | Met Revision 17 23 | -11/Scrapyard | Discovered new exit (range 16) 1860 | -11/Scrapyard | Entered Materials 1861 | -10/Materials | Build established: Mutant 2079 | -10/Materials | Discovered new exit (range 16) 2125 | -10/Materials | Entered another Materials area 2125 | -9/Materials | Evolved 2 slots: Power x1, Utility x1 2503 | -9/Materials | Discovered new exit (range 12) 2526 | -9/Materials | Entered Mines 2839 | -9/Mines | Learned 2 Materials zone layouts 2847 | -9/Mines | Joined a pair of Derelicts in attacking an 0b10 outpost 2970 | -9/Mines | A Derelict revealed a hidden shortcut to a safe place 2984 | -9/Mines | Entered Zion 3114 | -7/Zion | Found GAL Module 3366 | -7/Zion | Gained Derelict followers 3517 | -7/Zion | Discovered new exit (range 15) 3538 | -7/Zion | Entered Proximity Caves 3538 | -6/Proximity Caves | Accompanied by 2 allies 3740 | -6/Proximity Caves | Build established: Derelict-Mutant 3992 | -6/Proximity Caves | Lost 4 parts (1p2n1w) 4148 | -6/Proximity Caves | Discovered new exit (range 9) 4614 | -6/Proximity Caves | Entered Factory 4614 | -6/Factory | Accompanied by 1 ally 4614 | -6/Factory | Evolved 6 slots: Propulsion x1, Utility x4, Weapon x1 4719 | -6/Factory | Repaired Beamcaster 5006 | -6/Factory | Build established: Derelict-Tank 5479 | -6/Factory | Discovered new exit (range 15) 5515 | -6/Factory | Entered Lower Caves 5662 | -6/Lower Caves | Identified exit to Lower Caves 5818 | -6/Lower Caves | Build established: Tank 5881 | -6/Lower Caves | Core integrity fell below 50% 5904 | -6/Lower Caves | Found DCF Scrap (14 items) 5953 | -6/Lower Caves | Learned Factory emergency access door positions 5959 | -6/Lower Caves | Lost 12 parts (4p2n3u3w) 5994 | -6/Lower Caves | Core integrity fell below 20% 6054 | -6/Lower Caves | Entered another Lower Caves area 6261 | -6/Lower Caves | Entered an active Warlord outpost 6272 | -6/Lower Caves | Learned location of Extension (-5) 6272 | -6/Lower Caves | Learned location of 1 exit from Factory 6272 | -6/Lower Caves | Learned 8 Factory zone layouts 6272 | -6/Lower Caves | Learned Extension garrison access intel 6484 | -6/Lower Caves | Discovered new exit (range 11) 6574 | -6/Lower Caves | Build established: Derelict-Mutant 6584 | -6/Lower Caves | Attracted the attention of an 0b10 checkpoint 6626 | -6/Lower Caves | Destroyed by Y-54 Guardian with Gatling Laser Last Messages --------------- >>Record "Event 004843161535" Scouting mission reported back with intel. Data stored: Extension garrison access intel. Acquired Mak. Shrapnel Gun. Acquired Slug Cannon. Acquired Mak. Light Armor Plating. System corrupted: Component data lost. EXIT=FOUND Searching scrap... Found Unknown Energy Gun. Found 0b10 Decoder Chip [Scout]. Found Core Analyzer. Found IFF Parser. Found 57 Matter. Acquired 57 matter. Y-54 Guardian: "INTERCEPTING UNREGISTERED DERELICT." Acquired Core Analyzer. System corrupted: Slug Cannon rejected. [Achievement: Just Browsing] Map ----- +----------------------------------------------------+ | ???????????????????????????# ## #????? | | ????????????????????????????# ?????? | | ?????????????????????????????# ####### | | ????????????????????????????## | | ???????????????????????????## | | ???????????????????????????# ###### | | ???????????????????????????## # #####"""" | | ????????????????????????###???# ###"""" | | ????????????????????????# ##### ### | | ???????????????????????## ###" | | ???????????????????????# #?#" | | ???????????????????????# ###" | | ???????????????????????# ##"" | | ???????????????#???????## ##"" | | ???????????????# ?????### ###" | | ??????????????## ##### ## ##" | | ??????????????# ### ##" | | ????????????# ####?# ### | | ???????? ## ##????? #?# | | ????????? ## < ??# ##????? ?####X | | ??????????? ????## ####?? ????###### | | ?????????? ? ??????## #?? ????????? | | ???????????????????## #?? ???????? | | ??????????????????## ###??## ?????? | | ??????????????????# ## ##?????? #?????? | | ??????????????????#@###? #??????????????? | | ??????????????????# #??? ???#??????????? | | ??????????????????# #??? ?? #????????????## | | ??????????????????#]#???###? #?????????????? | | ??????????????????# #?????? #?????????????? | | ??????????????????#Y#######! ## #???????? | | ??????????????????# ! #????? | | ??????????????????#########[ #????? | | ???????????????????????????#### #???? | | ????????????????????????????????? #???? | | ???????????????????????????????????? ##???? | | ???????????????????????????????????????????? | | ???????????????????????????????????????????? | | ???????????????????????????????????????????? | | ???????????????????????????????????????????? | | ???????????????????????????????????????????? | | ???????????????????????????????????????????? | | ???????????????????????????????????????????? | | ???????????????????????????????????????????? | | ???????????????????????????????????????????? | | ???????????????????????????????????????????? | | ???????????????????????????????????????????? | | ???????????????????????????????????????????? | | ???????????????????????????????????????????? | | ???????????????????????????????????????????? | +----------------------------------------------------+ Best States ------------- Heat Dissipation 56 Coolant Potential 50 Energy Generation 25 Energy Capacity 640 Matter Stores 300 Matter Capacity 300 Sight Range 16 Terrain Scan Range 16 Terrain Scan Density 10 Armor Coverage 150 Power Shielding 33 Evasion (%) 55 Core Analysis 6 Recoil Reduction 1 Matter Filtering 30 Offensive Hacking 11 Item Schematics ----------------- None Robot Schematics ------------------ None Fabricated ------------ Nothing Repaired ---------- Beamcaster | 31% | -6/Factory Studied --------- None Alien Tech Used ----------------- None Achievements -------------- I'm Back, Baby! Just Browsing Challenges ------------ None Game ------ Seed SingularityReinforcedKatana Manual? 0 Play Time 01:01:15 Cumulative 37.4 hours Start 2026.09.01 @ 09:29:30 End 2026.09.03 @ 05:33:28 Sessions 7 Manual Loads 0 Difficulty Rogue Special Mode None Game No. 71 Rogue 71 Adventurer 0 Explorer 0 Win Type - Total 0 Types 0/0/0/0/0/0/0/0/0/0 Lore% 13 Gallery% 25 Achievement% 17 Wizard Run 0 Options --------- Layout 1 ASCII 0 Keyboard 0 Movement Numpad Keybinds 0 Fullscreen 1 Font 32/SmallcapsGlow Map View 50x35 Zoom Use 0% Tactical HUD 0 Map Filters NONE Filters NONE Steam 1 RUN: 7faf6236-efd0-4d88-8bf0-8498fc6bc400